[Event "WYCC U16 Open 2019"]
[Site "Mumbai"]
[Date "2019.10.11"]
[Round "10.8"]
[White "Sankalp Gupta"]
[Black "Avila Pavas, Santiago"]
[Result "*"]
[ECO "D30"]
[WhiteElo "2369"]
[BlackElo "2406"]
[Annotator "ChessBase"]
[PlyCount "30"]
[EventDate "2019.10.02"]
[EventType "swiss"]
[EventCountry "IND"]
[SourceTitle "playchess.com"]
[Source "ChessBase"]
[SourceQuality "1"]
[TimeControl "40/5400+30:1800+30"]

1. d4 d5 2. c4 e6 3. Nf3 a6 4. cxd5 exd5 5. Nc3 Nf6 6. Bg5 Be6 7. Qb3 b5 8. a4 b4 9. Bxf6 Qxf6 10. Nxd5 Qd8 11. e4 c6 12. Qe3 cxd5 13. exd5 Qd7 14. d6 Qxd6 15. Rc1 Qd5 *

[Event "WYCC U16 Open 2019"]
[Site "Mumbai"]
[Date "2019.10.11"]
[Round "10.9"]
[White "Gharibyan, Mamikon"]
[Black "Mis, Mieszko"]
[Result "1/2-1/2"]
[ECO "D52"]
[WhiteElo "2388"]
[BlackElo "2345"]
[Annotator "NA"]
[PlyCount "65"]
[EventDate "2019.10.02"]
[EventType "swiss"]
[EventCountry "IND"]
[SourceTitle "playchess.com"]
[Source "ChessBase"]
[SourceQuality "1"]
[TimeControl "40/5400+30:1800+30"]

1. d4 Nf6 2. c4 e6 3. Nf3 d5 4. Nc3 c6 5. Bg5 Nbd7 6. e3 Qa5 7. Nd2 Bb4 8. Qc2 O-O 9. Be2 c5 10. Nb3 Qa4 11. Bxf6 Nxf6 12. dxc5 dxc4 13. Bxc4 Qc6 14. O-O Bxc5 15. Bb5 Qb6 16. a3 Be7 17. Rfd1 e5 18. Nd2 a6 19. Be2 Be6 20. Na4 Qa7 21. Ne4 Nd5 22. Nac3 Rac8 23. Qa4 Nxc3 24. Nxc3 Qb6 25. Rd2 Rfd8 26. Rad1 h6 27. Bf3 Rxd2 28. Rxd2 Bb3 29. Qe4 Bxa3 30. Qxb7 Qxb7 31. Bxb7 Rc7 32. Bxa6 Bxb2 33. Rxb2 1/2-1/2

[Event "WYCC U16 Open 2019"]
[Site "Mumbai"]
[Date "2019.10.11"]
[Round "10.11"]
[White "Utsab Chatterjee"]
[Black "Wachinger, Nikolas"]
[Result "1-0"]
[ECO "B92"]
[WhiteElo "2211"]
[BlackElo "2297"]
[Annotator "NA"]
[PlyCount "145"]
[EventDate "2019.10.02"]
[EventType "swiss"]
[EventCountry "IND"]
[SourceTitle "playchess.com"]
[Source "ChessBase"]
[SourceQuality "1"]
[TimeControl "40/5400+30:1800+30"]

1. e4 c5 2. Nf3 d6 3. d4 cxd4 4. Nxd4 Nf6 5. Nc3 a6 6. Be2 e5 7. Nb3 Be7 8. O-O O-O 9. Kh1 Nc6 10. f4 b5 11. Bf3 b4 12. Nd5 a5 13. Be3 a4 14. Nd2 exf4 15. Bxf4 Nxd5 16. exd5 Nd4 17. a3 Nxf3 18. Qxf3 bxa3 19. Rxa3 Bf5 20. c3 Bg6 21. Rfa1 Qd7 22. Nc4 Ra6 23. b4 Bf6 24. h3 Rc8 25. Qe2 Qb5 26. Re1 Raa8 27. Nxd6 Qxe2 28. Rxe2 Rxc3 29. Rxa4 Rd8 30. Nb7 Rf8 31. Nc5 Bd4 32. d6 Bf5 33. Ra7 Rc4 34. d7 Bxd7 35. Rxd7 Bxc5 36. bxc5 Rxf4 37. Rc2 Re4 38. c6 Ree8 39. c7 h5 40. Kg1 g6 41. Kf2 Kg7 42. Rcd2 Rc8 43. R2d6 g5 44. Kf3 Rg8 45. Ke4 Rge8+ 46. Kf5 Re2 47. Rg6+ Kf8 48. Rf6 Re7 49. Rd8+ Re8 50. Rh6 Ke7 51. Rxe8+ Rxe8 52. Rc6 Rc8 53. Kxg5 Kd7 54. Rc2 Rg8+ 55. Kf6 Kc8 56. Kxf7 Rg3 57. Kf6 h4 58. Kf5 Rg7 59. Ke4 Rf7 60. Ke3 Rf8 61. Rc4 Rh8 62. Kf3 Rh7 63. Kg4 Rg7+ 64. Kxh4 Rxg2 65. Kh5 Rg8 66. h4 Rg7 67. Kh6 Rg2 68. h5 Rg3 69. Kh7 Rg5 70. h6 Rg3 71. Rc6 Rg4 72. Rg6 Re4 73. Kg7 1-0

[Event "WYCC U16 Open 2019"]
[Site "Mumbai"]
[Date "2019.10.11"]
[Round "10.13"]
[White "Bagvilas, Lukas"]
[Black "Manafov, Vugar"]
[Result "1/2-1/2"]
[ECO "C11"]
[WhiteElo "1983"]
[BlackElo "2357"]
[Annotator "NA"]
[PlyCount "61"]
[EventDate "2019.10.02"]
[EventType "swiss"]
[EventCountry "IND"]
[SourceTitle "playchess.com"]
[Source "ChessBase"]
[SourceQuality "1"]
[TimeControl "40/5400+30:1800+30"]

1. e4 {[%emt 0:00:00]} Nf6 {[%emt 0:00:00]} 2. Nc3 {[%emt 0:00:00]} d5 {[%emt 0:00:00]} 3. e5 {[%emt 0:00:00]} Nfd7 {[%emt 0:00:00]} 4. d4 c5 {[%emt 0:00:00]} 5. f4 {[%emt 0:00:00]} cxd4 {[%emt 0:00:00]} 6. Qxd4 {[%emt 0:00:24]} e6 {[%emt 0:00:09]} 7. Qd1 {[%emt 0:02:28]} Bc5 {[%emt 0:03:34]} 8. Qg4 {[%emt 0:00:05]} O-O {[%emt 0:01:26]} 9. Nf3 {[%emt 0:00:04]} Nc6 {[%emt 0:02:03]} 10. Bd3 {[%emt 0:00:09]} f5 {[%emt 0:00:05]} 11. Qh3 {[%emt 0:00:03]} Qe7 {[%emt 0:02:34]} 12. g4 {[%emt 0:00:42]} Nb6 {[%emt 0:03:27]} 13. a3 {[%emt 0:08:22]} a5 {[%emt 0:07:30]} 14. Ne2 {[%emt 0:00:40]} Nc4 {[%emt 0:01:08]} 15. c3 {[%emt 0:14:23]} a4 {[%emt 0:03:17]} 16. Ng5 {[%emt 0:07:42]} g6 {[%emt 0:09:53]} 17. gxf5 {[%emt 0:00:05]} exf5 {[%emt 0:00:26]} 18. Bxc4 {[%emt 0:16:24]} dxc4 {[%emt 0:00:06]} 19. Be3 {[%emt 0:00:06]} Bxe3 {[%emt 0:03:20]} 20. Qxe3 {[%emt 0:00:48]} Rd8 {[%emt 0:01:17]} 21. h4 {[%emt 0:02:32]} Rd3 {[%emt 0:01:35]} 22. Qg1 {[%emt 0:05:16]} h5 {[%emt 0:05:12]} 23. Rd1 {[%emt 0:10:47]} Be6 {[%emt 0:01:04]} 24. Rxd3 {[%emt 0:13:43]} cxd3 {[%emt 0:00:28]} 25. Nxe6 {[%emt 0:01:49]} Qxe6 {[%emt 0:00:07]} 26. Nc1 {[%emt 0:00:04]} Rd8 {[%emt 0:05:54]} 27. Kd2 {[%emt 0:04:16]} Na5 {[%emt 0:00:52]} 28. Nxd3 {[%emt 0:00:58]} Kh7 {[%emt 0:02:59]} 29. Qg5 {[%emt 0:06:10]} Nc4+ {[%emt 0:13:46]} 30. Ke2 {[%emt 0:00:07]} Qd5 {[%emt 0:12:24]} 31. Rh3 {[%emt 0:01:49]} 1/2-1/2

[Event "WYCC U16 Open 2019"]
[Site "Mumbai"]
[Date "2019.10.11"]
[Round "10.14"]
[White "Turgut, Aydin"]
[Black "Mohamed Anees M"]
[Result "1-0"]
[ECO "B44"]
[WhiteElo "2281"]
[BlackElo "2126"]
[Annotator "ChessBase"]
[PlyCount "59"]
[EventDate "2019.10.02"]
[EventType "swiss"]
[EventCountry "IND"]
[SourceTitle "playchess.com"]
[Source "ChessBase"]
[SourceQuality "1"]
[TimeControl "40/5400+30:1800+30"]

1. e4 c5 2. Nf3 e6 3. d4 cxd4 4. Nxd4 Nc6 5. Be2 Qc7 6. Nc3 a6 7. O-O Nf6 8. Be3 Be7 9. f4 d6 10. Kh1 O-O 11. Qe1 Re8 12. Qg3 Nxd4 13. Bxd4 b5 14. e5 dxe5 15. fxe5 Nd7 16. Nd5 Qd8 17. Nf6+ Nxf6 18. exf6 Bf8 19. Rad1 g6 20. Bc5 Bxc5 21. Rxd8 Rxd8 22. Qc7 Rd5 23. Bf3 Bf8 24. Bxd5 exd5 25. Qc6 Rb8 26. Qe8 Ra8 27. Re1 Bb7 28. Qd7 Bc8 29. Qc6 Rb8 30. Qc7 1-0

[Event "WYCC U16 Open 2019"]
[Site "Mumbai"]
[Date "2019.10.11"]
[Round "10.15"]
[White "Karthik Sai Ch"]
[Black "Raahul V S"]
[Result "0-1"]
[ECO "D02"]
[WhiteElo "2046"]
[BlackElo "2262"]
[Annotator "NA"]
[PlyCount "105"]
[EventDate "2019.10.02"]
[EventType "swiss"]
[EventCountry "IND"]
[SourceTitle "playchess.com"]
[Source "ChessBase"]
[SourceQuality "1"]
[TimeControl "40/5400+30:1800+30"]

1. d4 {[%emt 0:00:00]} Nf6 {[%emt 0:00:00]} 2. Nf3 {[%emt 0:00:00]} d5 {[%emt 0:01:10]} 3. Bf4 {[%emt 0:00:00]} c5 {[%emt 0:00:24]} 4. e3 {[%emt 0:00:04]} Bg4 {[%emt 0:00:14]} 5. Nbd2 {[%emt 0:04:03]} Nbd7 {[%emt 0:01:20]} 6. Be2 {[%emt 0:02:56]} e6 {[%emt 0:00:37]} 7. O-O {[%emt 0:00:52]} Be7 {[%emt 0:00:32]} 8. Ne5 {[%emt 0:02:47]} Bxe2 {[%emt 0:02:07]} 9. Qxe2 {[%emt 0:00:08]} O-O {[%emt 0:00:41]} 10. c3 {[%emt 0:00:23]} a6 {[%emt 0:08:05]} 11. Rfd1 {[%emt 0:03:38]} Re8 {[%emt 0:13:56]} 12. h3 {[%emt 0:03:46]} b5 {[%emt 0:05:55]} 13. Nc6 {[%emt 0:08:27]} Qb6 {[%emt 0:00:22]} 14. Nxe7+ {[%emt 0:00:08]} Rxe7 {[%emt 0:00:03]} 15. Nf3 {[%emt 0:03:37]} Ree8 {[%emt 0:09:45]} 16. a4 {[%emt 0:06:34]} Rec8 {[%emt 0:09:24]} 17. a5 {[%emt 0:02:34]} Qb7 {[%emt 0:01:09]} 18. Ne5 {[%emt 0:03:44]} cxd4 {[%emt 0:11:29]} 19. Nxd7 {[%emt 0:04:51]} Nxd7 {[%emt 0:00:57]} 20. exd4 {[%emt 0:05:48]} b4 {[%emt 0:00:37]} 21. Rdb1 {[%emt 0:03:41]} Rc4 {[%emt 0:02:52]} 22. Bd2 {[%emt 0:04:41]} bxc3 {[%emt 0:07:22]} 23. bxc3 {[%emt 0:00:07]} Qc7 {[%emt 0:00:10]} 24. Rb4 {[%emt 0:02:15]} Rc6 25. f4 {[%emt 0:05:19]} Nf6 {[%emt 0:05:19]} 26. Qe5 {[%emt 0:00:49]} Ne4 {[%emt 0:02:30]} 27. Qxc7 {[%emt 0:03:48]} Rxc7 {[%emt 0:00:01]} 28. Be1 {[%emt 0:00:01]} Nxc3 {[%emt 0:00:57]} 29. Bxc3 {[%emt 0:00:10]} Rxc3 {[%emt 0:00:01]} 30. Rab1 {[%emt 0:00:08]} g6 {[%emt 0:01:07]} 31. Rb8+ {[%emt 0:01:04]} Rxb8 {[%emt 0:00:00]} 32. Rxb8+ {[%emt 0:00:07]} Kg7 {[%emt 0:00:01]} 33. Rb6 {[%emt 0:00:14]} Rc4 {[%emt 0:00:30]} 34. Rxa6 {[%emt 0:00:15]} Rxd4 {[%emt 0:00:01]} 35. g3 {[%emt 0:00:07]} h6 {[%emt 0:04:29]} 36. h4 {[%emt 0:03:32]} Rd2 {[%emt 0:01:24]} 37. Ra8 {[%emt 0:00:14]} Ra2 {[%emt 0:01:57]} 38. a6 {[%emt 0:00:44]} Kf6 {[%emt 0:01:24]} 39. g4 {[%emt 0:00:22]} Ra4 {[%emt 0:01:23]} 40. g5+ {[%emt 0:05:05]} hxg5 {[%emt 0:00:07]} 41. fxg5+ {[%emt 0:30:36]} Kf5 {[%emt 0:11:57]} 42. Rf8 {[%emt 0:00:00]} Rxa6 {[%emt 0:01:54]} 43. Rxf7+ {[%emt 0:00:00]} Kg4 {[%emt 0:00:06]} 44. Rf6 {[%emt 0:00:00]} Kh5 {[%emt 0:00:32]} 45. Kf2 {[%emt 0:00:00]} Ra2+ {[%emt 0:00:07]} 46. Ke3 {[%emt 0:00:00]} e5 {[%emt 0:00:14]} 47. Re6 {[%emt 0:00:00]} Ra3+ {[%emt 0:00:26]} 48. Ke2 {[%emt 0:00:00]} Ra4 {[%emt 0:01:25]} 49. Kf3 {[%emt 0:00:00]} Rf4+ {[%emt 0:00:10]} 50. Ke3 {[%emt 0:00:00]} Rxh4 {[%emt 0:00:35]} 51. Rxe5 {[%emt 0:00:00]} Re4+ {[%emt 0:00:10]} 52. Rxe4 {[%emt 0:00:00]} dxe4 {[%emt 0:00:01]} 53. Kd4 0-1

[Event "WYCC U16 Open 2019"]
[Site "Mumbai"]
[Date "2019.10.11"]
[Round "10.16"]
[White "McGowan, Cameron"]
[Black "Goderdzishvili, Giga"]
[Result "0-1"]
[ECO "C02"]
[WhiteElo "2221"]
[BlackElo "2038"]
[Annotator "NA"]
[PlyCount "56"]
[EventDate "2019.10.02"]
[EventType "swiss"]
[EventCountry "IND"]
[SourceTitle "playchess.com"]
[Source "ChessBase"]
[SourceQuality "1"]
[TimeControl "40/5400+30:1800+30"]

1. e4 e6 2. d4 d5 3. e5 c5 4. c3 Nc6 5. Nf3 Bd7 6. Be2 Nge7 7. O-O Nf5 8. a3 cxd4 9. Bd3 Nh4 10. Nxh4 Qxh4 11. g3 Qd8 12. cxd4 Nxd4 13. Bxh7 Nc6 14. Bc2 Nxe5 15. Re1 Qf6 16. f4 Bc5+ 17. Kg2 Nc4 18. Nc3 O-O-O 19. Ba4 g5 20. Qc2 Bxa4 21. Nxa4 Rxh2+ 22. Kxh2 Rh8+ 23. Kg2 Qh6 24. Kf1 Qh1+ 25. Ke2 Rh2+ 26. Kd3 Qf3+ 27. Re3 Bxe3 28. Qxh2 Bg1+ {Kd4} 0-1

[Event "WYCC U16 Open 2019"]
[Site "Mumbai"]
[Date "2019.10.12"]
[Round "11.1"]
[White "Pogosyan, Stefan"]
[Black "Makarian, Rudik"]
[Result "1/2-1/2"]
[ECO "A17"]
[WhiteElo "2364"]
[BlackElo "2386"]
[Annotator "ChessBase"]
[PlyCount "60"]
[EventDate "2019.10.02"]
[EventType "swiss"]
[EventCountry "IND"]
[SourceTitle "playchess.com"]
[Source "ChessBase"]
[SourceQuality "1"]
[TimeControl "40/5400+30:1800+30"]

1. c4 {[%emt 0:00:00]} e6 {[%emt 0:00:00]} 2. Nc3 {[%emt 0:00:00]} Bb4 {[%emt 0:00:00]} 3. Nf3 {[%emt 0:00:27]} Nf6 {[%emt 0:00:27]} 4. Qc2 {[%emt 0:03:18]} d5 {[%emt 0:09:45]} 5. a3 {[%emt 0:03:21]} Bxc3 {[%emt 0:00:15]} 6. Qxc3 {[%emt 0:00:15]} O-O {[%emt 0:01:56]} 7. e3 {[%emt 0:02:31]} a5 {[%emt 0:06:28]} 8. b3 {[%emt 0:01:32]} b6 {[%emt 0:00:34]} 9. Bb2 {[%emt 0:01:24]} Bb7 {[%emt 0:00:26]} 10. Be2 {[%emt 0:00:18]} c5 {[%emt 0:03:06]} 11. O-O {[%emt 0:05:43]} Nc6 {[%emt 0:04:02]} 12. d4 {[%emt 0:06:32]} Ne4 {[%emt 0:13:02]} 13. Qc2 {[%emt 0:00:26]} cxd4 {[%emt 0:01:06]} 14. Nxd4 {[%emt 0:09:23]} Nxd4 {[%emt 0:07:48]} 15. Bxd4 {[%emt 0:00:32]} Rc8 {[%emt 0:02:41]} 16. Rfd1 {[%emt 0:21:35]} Qh4 {[%emt 0:08:52]} 17. g3 {[%emt 0:07:54]} Qh3 {[%emt 0:00:40]} 18. Bf1 {[%emt 0:01:07]} Qf5 {[%emt 0:00:13]} 19. Bg2 {[%emt 0:01:32]} dxc4 {[%emt 0:01:18]} 20. bxc4 {[%emt 0:01:24]} Rxc4 {[%emt 0:02:55]} 21. Bxe4 {[%emt 0:06:14]} Qxe4 {[%emt 0:00:07]} 22. Qxe4 {[%emt 0:00:16]} Bxe4 {[%emt 0:00:03]} 23. Bxb6 {[%emt 0:00:19]} a4 {[%emt 0:00:04]} 24. Rac1 {[%emt 0:00:19]} Rxc1 {[%emt 0:00:36]} 25. Rxc1 {[%emt 0:00:06]} Rb8 {[%emt 0:01:08]} 26. Ba7 {[%emt 0:01:24]} Rb1 {[%emt 0:00:06]} 27. Rxb1 {[%emt 0:00:03]} Bxb1 {[%emt 0:00:04]} 28. f3 {[%emt 0:00:09]} f5 {[%emt 0:00:09]} 29. Kh1 {[%emt 0:00:04]} Kh8 {[%emt 0:00:04]} 30. Kg1 {[%emt 0:00:04]} Kg8 {[%emt 0:00:04]} 1/2-1/2

[Event "WYCC U16 Open 2019"]
[Site "Mumbai"]
[Date "2019.10.12"]
[Round "11.2"]
[White "Daghli, Arash"]
[Black "Aronyak Ghosh"]
[Result "1/2-1/2"]
[ECO "B04"]
[WhiteElo "2387"]
[BlackElo "2380"]
[Annotator "ChessBase"]
[PlyCount "72"]
[EventDate "2019.10.02"]
[EventType "swiss"]
[EventCountry "IND"]
[SourceTitle "playchess.com"]
[Source "ChessBase"]
[SourceQuality "1"]
[TimeControl "40/5400+30:1800+30"]

1. e4 Nf6 2. e5 Nd5 3. d4 d6 4. Nf3 dxe5 5. Nxe5 c6 6. Be2 g6 7. c4 Nc7 8. Nc3 Bg7 9. f4 Nd7 10. Be3 Nxe5 11. dxe5 Qxd1+ 12. Rxd1 h5 13. O-O Bf5 14. Bf3 Ne6 15. b4 Bg4 16. Bxg4 hxg4 17. Ne4 Rh5 18. a4 a5 19. b5 cxb5 20. cxb5 Rc8 21. Rc1 Rxc1 22. Bxc1 f5 23. exf6 Bxf6 24. Nxf6+ exf6 25. Bb2 Rc5 26. Bxf6 Rc4 27. f5 gxf5 28. Rxf5 Rxa4 29. Rh5 Nf4 30. Rh7 Ra2 31. Rxb7 Rxg2+ 32. Kf1 Rxh2 33. Be5 g3 34. Bxf4 Rf2+ 35. Kg1 Rxf4 36. Ra7 Rb4 1/2-1/2

[Event "WYCC U16 Open 2019"]
[Site "Mumbai"]
[Date "2019.10.12"]
[Round "11.3"]
[White "Cardoso Cardoso, Jose Gabriel"]
[Black "Niemann, Hans Moke"]
[Result "1-0"]
[ECO "E46"]
[WhiteElo "2313"]
[BlackElo "2439"]
[Annotator "ChessBase"]
[PlyCount "69"]
[EventDate "2019.10.02"]
[EventType "swiss"]
[EventCountry "IND"]
[SourceTitle "playchess.com"]
[Source "ChessBase"]
[SourceQuality "1"]
[TimeControl "40/5400+30:1800+30"]

1. d4 {[%emt 0:00:00]} Nf6 {[%emt 0:00:00]} 2. c4 {[%emt 0:00:00]} e6 {[%emt 0:00:07]} 3. Nc3 {[%emt 0:00:10]} Bb4 {[%emt 0:00:17]} 4. e3 {[%emt 0:00:11]} O-O {[%emt 0:01:04]} 5. Bd2 {[%emt 0:00:09]} c6 {[%emt 0:01:12]} 6. Nf3 {[%emt 0:01:48]} d5 {[%emt 0:00:10]} 7. Bd3 {[%emt 0:03:12]} Nbd7 {[%emt 0:04:37]} 8. O-O {[%emt 0:01:11]} Qe7 {[%emt 0:00:45]} 9. Re1 {[%emt 0:09:02]} dxc4 {[%emt 0:00:37]} 10. Bxc4 {[%emt 0:00:13]} e5 {[%emt 0:00:03]} 11. e4 {[%emt 0:03:38]} exd4 {[%emt 0:00:53]} 12. e5 {[%emt 0:04:04]} dxc3 {[%emt 0:01:28]} 13. bxc3 {[%emt 0:02:05]} Bc5 {[%emt 0:02:05]} 14. exf6 {[%emt 0:11:07]} Qxf6 {[%emt 0:00:06]} 15. Bg5 {[%emt 0:00:04]} Qxc3 {[%emt 0:05:48]} 16. Rc1 {[%emt 0:00:23]} Qa5 {[%emt 0:00:09]} 17. Be7 {[%emt 0:04:27]} Bxe7 {[%emt 0:03:59]} 18. Rxe7 {[%emt 0:00:03]} Nf6 {[%emt 0:00:53]} 19. Ne5 {[%emt 0:12:24]} Be6 {[%emt 0:00:30]} 20. Bxe6 {[%emt 0:00:59]} fxe6 {[%emt 0:00:05]} 21. Qd6 {[%emt 0:00:24]} Qxa2 {[%emt 0:01:48]} 22. Rf1 {[%emt 0:10:56]} Qd5 {[%emt 0:06:40]} 23. Qc7 {[%emt 0:00:57]} Nh5 {[%emt 0:00:26]} 24. Nd7 {[%emt 0:06:46]} Rfc8 {[%emt 0:02:52]} 25. Qxb7 {[%emt 0:03:14]} Qg5 {[%emt 0:00:11]} 26. Rf7 {[%emt 0:09:52]} Kxf7 {[%emt 0:01:28]} 27. Nb8+ {[%emt 0:00:08]} Kg6 {[%emt 0:04:59]} 28. Qxc8 {[%emt 0:00:07]} Qd5 {[%emt 0:00:06]} 29. Qc7 {[%emt 0:03:05]} c5 {[%emt 0:02:07]} 30. Nc6 {[%emt 0:06:33]} Kh6 {[%emt 0:02:05]} 31. Ne5 {[%emt 0:00:51]} Nf6 {[%emt 0:00:58]} 32. Nf7+ {[%emt 0:00:29]} Kh5 {[%emt 0:03:33]} 33. Re1 {[%emt 0:00:59]} g5 {[%emt 0:05:16]} 34. Ne5 {[%emt 0:01:54]} Rf8 {[%emt 0:00:39]} 35. Qg7 {[%emt 0:00:40]} 1-0

[Event "WYCC U16 Open 2019"]
[Site "Mumbai"]
[Date "2019.10.12"]
[Round "11.5"]
[White "Raja Rithvik R"]
[Black "Kacharava, Nikolozi"]
[Result "1/2-1/2"]
[ECO "E62"]
[WhiteElo "2369"]
[BlackElo "2428"]
[Annotator "ChessBase"]
[PlyCount "75"]
[EventDate "2019.10.02"]
[EventType "swiss"]
[EventCountry "IND"]
[SourceTitle "playchess.com"]
[Source "ChessBase"]
[SourceQuality "1"]
[TimeControl "40/5400+30:1800+30"]

1. Nf3 {[%emt 0:00:00]} Nf6 {[%emt 0:00:00]} 2. c4 {[%emt 0:00:00]} d6 {[%emt 0:00:26]} 3. d4 {[%emt 0:00:00]} g6 {[%emt 0:00:31]} 4. g3 {[%emt 0:00:18]} Bg7 {[%emt 0:00:24]} 5. Bg2 {[%emt 0:00:06]} O-O {[%emt 0:00:33]} 6. Nc3 {[%emt 0:00:04]} Nc6 {[%emt 0:00:51]} 7. O-O {[%emt 0:00:07]} e5 {[%emt 0:00:31]} 8. dxe5 {[%emt 0:00:06]} dxe5 {[%emt 0:00:35]} 9. Bg5 {[%emt 0:00:06]} Be6 {[%emt 0:00:35]} 10. Qc1 {[%emt 0:00:09]} Qe8 {[%emt 0:00:40]} 11. Rd1 {[%emt 0:00:06]} Rd8 {[%emt 0:00:46]} 12. Nd2 {[%emt 0:01:34]} Rd7 {[%emt 0:00:45]} 13. b3 {[%emt 0:12:02]} Ng4 {[%emt 0:06:46]} 14. Nde4 {[%emt 0:08:57]} Rxd1+ {[%emt 0:08:33]} 15. Qxd1 {[%emt 0:00:28]} f5 {[%emt 0:02:31]} 16. h3 {[%emt 0:09:02]} fxe4 {[%emt 0:05:09]} 17. hxg4 {[%emt 0:00:06]} Nd4 {[%emt 0:03:01]} 18. Bxe4 {[%emt 0:01:05]} Bxg4 {[%emt 0:00:46]} 19. Qd2 {[%emt 0:05:35]} c6 {[%emt 0:06:28]} 20. Kg2 {[%emt 0:02:02]} Qf7 {[%emt 0:09:01]} 21. f3 {[%emt 0:07:44]} Bf5 22. Rf1 {[%emt 0:12:02]} a6 {[%emt 0:18:05]} 23. Bd3 {[%emt 0:05:21]} b5 {[%emt 0:07:13]} 24. cxb5 {[%emt 0:08:17]} axb5 {[%emt 0:00:12]} 25. Ne4 {[%emt 0:00:10]} Be6 {[%emt 0:03:10]} 26. Bh6 {[%emt 0:04:51]} Bxh6 {[%emt 0:03:59]} 27. Qxh6 {[%emt 0:00:14]} Nf5 {[%emt 0:00:17]} 28. Qd2 {[%emt 0:01:32]} Qa7 {[%emt 0:01:21]} 29. Rc1 {[%emt 0:03:46]} Ne3+ {[%emt 0:03:32]} 30. Kh1 {[%emt 0:00:01]} Qd4 {[%emt 0:05:38]} 31. Qc3 {[%emt 0:03:21]} Bd5 {[%emt 0:01:53]} 32. Qxd4 {[%emt 0:01:06]} exd4 {[%emt 0:00:02]} 33. a4 {[%emt 0:00:00]} Bxb3 {[%emt 0:04:00]} 34. axb5 {[%emt 0:00:33]} cxb5 {[%emt 0:00:07]} 35. Bxb5 {[%emt 0:00:47]} Bd5 {[%emt 0:01:57]} 36. Bd3 {[%emt 0:00:34]} Bxe4 {[%emt 0:01:22]} 37. Bxe4 {[%emt 0:00:05]} Kg7 {[%emt 0:01:19]} 38. Ra1 {[%emt 0:02:29]} 1/2-1/2

[Event "WYCC U16 Open 2019"]
[Site "Mumbai"]
[Date "2019.10.12"]
[Round "11.6"]
[White "Harshavardhan G B"]
[Black "Utsab Chatterjee"]
[Result "1-0"]
[ECO "D37"]
[WhiteElo "2362"]
[BlackElo "2211"]
[Annotator "NA RC"]
[PlyCount "72"]
[EventDate "2019.10.02"]
[EventType "swiss"]
[EventCountry "IND"]
[SourceTitle "playchess.com"]
[Source "ChessBase"]
[SourceQuality "1"]
[TimeControl "40/5400+30:1800+30"]

1. d4 d5 2. c4 e6 3. Nc3 Nf6 4. Nf3 Be7 5. Bf4 O-O 6. e3 c5 7. dxc5 Bxc5 8. a3 Nc6 9. Rc1 Be7 10. cxd5 Nxd5 11. Nxd5 exd5 12. b4 Bg4 13. Be2 Rc8 14. O-O a6 15. h3 Bh5 16. Qd2 Bg6 17. Ne5 Nxe5 18. Bxe5 Rxc1 19. Rxc1 Bf6 20. Bxf6 Qxf6 21. Qd4 Qe6 22. Bg4 Qe4 23. Bf3 Qxd4 24. exd4 Be4 25. Rc7 Rb8 26. Bxe4 dxe4 27. Kf1 g6 28. Ke2 b5 29. Ke3 f5 30. d5 Ra8 31. Kd4 a5 32. d6 Rd8 33. Ke5 axb4 34. axb4 Re8+ 35. Kd5 Rd8 36. d7 Kf7 1-0

[Event "WYCC U16 Open 2019"]
[Site "Mumbai"]
[Date "2019.10.12"]
[Round "11.7"]
[White "Bilych, Olexiy"]
[Black "Moksh Amit Doshi"]
[Result "1-0"]
[ECO "B90"]
[WhiteElo "2281"]
[BlackElo "2328"]
[Annotator "ChessBase"]
[PlyCount "64"]
[EventDate "2019.10.02"]
[EventType "swiss"]
[EventCountry "IND"]
[SourceTitle "playchess.com"]
[Source "ChessBase"]
[SourceQuality "1"]
[TimeControl "40/5400+30:1800+30"]

1. e4 c5 2. Nf3 d6 3. d4 cxd4 4. Nxd4 Nf6 5. Nc3 a6 6. h3 e6 7. g4 Nfd7 8. g5 b5 9. a3 Bb7 10. h4 Be7 11. Be3 Nc6 12. Qd2 O-O 13. O-O-O Nc5 14. Rg1 b4 15. Nxc6 Bxc6 16. axb4 Nxe4 17. Nxe4 Bxe4 18. Bd3 Bxd3 19. Qxd3 d5 20. Bd4 Qc7 21. Qe3 Rfc8 22. c3 Bxb4 23. g6 hxg6 24. h5 Bd6 25. Qh3 Bf4+ 26. Kb1 e5 27. hxg6 fxg6 28. Rxg6 exd4 29. Rh1 Qe5 30. Re6 Qg5 31. Rg6 Qe5 32. Re6 Qg5 1-0

[Event "WYCC U16 Open 2019"]
[Site "Mumbai"]
[Date "2019.10.12"]
[Round "11.8"]
[White "Avila Pavas, Santiago"]
[Black "Ammar, Sedrani"]
[Result "1/2-1/2"]
[ECO "A13"]
[WhiteElo "2406"]
[BlackElo "2053"]
[Annotator "ChessBase"]
[PlyCount "74"]
[EventDate "2019.10.02"]
[EventType "swiss"]
[EventCountry "IND"]
[SourceTitle "playchess.com"]
[Source "ChessBase"]
[SourceQuality "1"]
[TimeControl "40/5400+30:1800+30"]

1. c4 e6 2. g3 Nf6 3. Bg2 d5 4. Nf3 c6 5. O-O Nbd7 6. b3 Be7 7. Bb2 O-O 8. d3 b6 9. Qc2 Bb7 10. e4 c5 11. e5 Ne8 12. Nfd2 Nef6 13. Nf3 Ne8 14. Nfd2 Qc7 15. f4 d4 16. Ne4 f6 17. exf6 gxf6 18. Qe2 Ng7 19. Na3 a6 20. Rae1 Rae8 21. Nc2 f5 22. Nd2 Bd6 23. Bxb7 Qxb7 24. Nf3 e5 25. fxe5 Nxe5 26. Nxe5 Bxe5 27. Qg2 Qxg2+ 28. Kxg2 f4 29. gxf4 Bxf4 30. Rxe8 Nxe8 31. Bc1 Bxc1 32. Rxc1 Rf5 33. b4 Rg5+ 34. Kf3 Rf5+ 35. Ke2 Rh5 36. Rg1+ Kf7 37. Rg2 Nd6 1/2-1/2

[Event "WYCC U16 Open 2019"]
[Site "Mumbai"]
[Date "2019.10.12"]
[Round "11.9"]
[White "Raahul V S"]
[Black "Gharibyan, Mamikon"]
[Result "1-0"]
[ECO "A13"]
[WhiteElo "2262"]
[BlackElo "2388"]
[Annotator "ChessBase"]
[PlyCount "77"]
[EventDate "2019.10.02"]
[EventType "swiss"]
[EventCountry "IND"]
[SourceTitle "playchess.com"]
[Source "ChessBase"]
[SourceQuality "1"]
[TimeControl "40/5400+30:1800+30"]

1. c4 e6 2. g3 d5 3. Bg2 Nf6 4. Nf3 b6 5. O-O Bb7 6. d4 Be7 7. Qa4+ c6 8. Ne5 O-O 9. Nc3 Nfd7 10. Nd3 a6 11. Qb3 b5 12. cxd5 cxd5 13. e4 dxe4 14. Nxe4 Nc6 15. Be3 Na5 16. Qd1 Nc4 17. Nf6+ Nxf6 18. Bxb7 Ra7 19. Bg2 Nd5 20. Qe2 Bf6 21. Rac1 Ndxe3 22. fxe3 Nxe3 23. Rxf6 Qxf6 24. Qxe3 Qd8 25. Nb4 Qd6 26. Rc5 Rd7 27. Nc2 Rc7 28. b4 a5 29. Na3 Qd7 30. bxa5 b4 31. Nc4 Rxc5 32. dxc5 Qa4 33. Qd2 Qb5 34. Qd4 e5 35. Qd5 Qa4 36. c6 Qxa2 37. c7 Qc2 38. Bf1 e4 39. Qd8 1-0